Workbook

Sheet Curtis McGoyvin
B2: Impairment Analysis
A4: Section 1 | B4: Customer Name: | K4: Curtis McGoyvin | AI4: Account #: | AO4: 444 | AV4: Impairment Amount: | BH4: =IF(BH38<BH30,BH38,BH30) -> -156261
B5: Analysis Date: | K5: 2012-04-09 | W5: Date Downgraded: | AI5: 15/11/11
B6: Risk Grade: | K6: 500 | W6: Payment Status: | AI6: Current | AV6: Principal Balance: | BK6: 749661
B7: Accrual Status: | K7: On Accrual | W7: Sold %: | AI7: 0 | AV7: Less Prior Write Offs: | BK7: 0
B8: SBA Guarantee %: | K8: 0 | AV8: Net Principal Balance: | BK8: =BK6-BK7 -> 749661
AU9: ='Account Information'!AP5 -> 0 | AV9: =TODAY() -> 2012-04-13
A10: Section 2 | B10: Financial Information | DQ10: ='Account Information'!BP7 -> 0
B11: Balance Sheet | O11: Year 1 | AY11: Debt Service Coverage Ratio: | BM11: =O20/O21 -> 2.509398186 | DQ11: ='Account Information'!BO7 -> 0
B12: Current Assets: | O12: 35000 | AY12: Debt to Income Ratio: | BM12: =O21/O20 -> 0.3985019219
B13: Total Assets: | O13: 850000 | AY13: Current Ratio: | BM13: =O12/O14 -> 7
B14: Current Liabilities: | O14: 5000
B15: Total Liabilities: | O15: 800000
B16: Net Worth: | O16: =O13-O15 -> 50000
B18: Tax Return/Income Statement | O18: Year 1
B19: Income Verification Source: | O19: Tax Return
B20: Annual Income/EBITDA: | O20: 121756
B21: Annual Debt Payments: | O21: 48520
A23: Section 3 | B23: Present Value of Cash Flow Analysis
AS24: Amount of Monthly Payments: | BH24: 1500
AS25: Length of Note to Maturity (months): | BH25: 14
AS26: Payoff / Refinance Amount at Maturity: | BH26: 749661
AS27: Interest Rate (Discount Rate): | BH27: 0.07
AS28: Present Value: | BH28: =PV(BH27/12,BH25,-BH24)+PV(BH27/12,BH25,0,-BH26) -> 711144.9935
AS29: Less Net Active Principal Balance: | BH29: =$BK$8 -> 749661
AS30: Equity or (Impairment): | BH30: =BH28-BH29 -> -38516.00647
A32: Section 4 | B32: Fair Market Value Analysis
B33: Collateral: | L33: Residential Home | AS33: Appraised Value: | BH33: =L36 -> 645000
B34: Valuation Date: | L34: 2012-03-27 | AS34: Less Commissions & Closing Costs: | BH34: =BH33*-0.08 -> -51600
B35: Appraiser / Reviewer: | L35: Paul Smith | AS35: Less Prior Liens: | BH35: 0
B36: Value: | L36: 645000 | AS36: Gross Liquidation Proceeds: | BH36: =BH33+BH34+BH35 -> 593400
B37: Street Number: | L37: 123 S. 200 W. | AS37: Less Net Active Principal Balance: | BH37: =BK8 -> 749661
B38: City: | L38: Bountiful | AS38: Equity or (Impairment): | BH38: =BH36-BH37 -> -156261
B39: State, Zip: | L39: UT | O39: 84010
B40: Sq Ft (up / down): | L40: 4220 | Q40: 2100
B41: Sq Ft (total): | L41: =L40+Q40 -> 6320
B42: $ / Sq Ft: | L42: =L36/L41 -> 102.056962
A43: Section 5 | B43: Signature & Date
D47: Signature | AV47: Date

Sheet Account Information
A1: Name | B1: Acct Number | C1: Date Downgraded | D1: Risk Grade | E1: Payment Status | F1: Accrual Status | G1: Sold % | H1: SBA Guarantee | I1: Prior Write Offs | J1: Principal Balance
A2: James Monroe | B2: 111 | C2: 2011-07-11 | D2: 700 | E2: Past Due | F2: Non Accrual | G2: 0 | H2: 0 | I2: 22400 | J2: 225026
A3: Kimberly Clark | B3: 222 | C3: 2010-03-03 | D3: 700 | E3: Past Due | F3: Non Accrual | G3: 0 | H3: 0 | I3: 65000 | J3: 798255
A4: Jeanne Walk | B4: 333 | C4: 2009-08-01 | D4: 600 | E4: Current | F4: Non Accrual | G4: 0.75 | H4: 0 | I4: 0 | J4: 1250000
A5: Curtis McGoyvin | B5: 444 | C5: 2011-07-28 | D5: 500 | E5: Current | F5: On Accrual | G5: 0.5 | H5: 0 | I5: 0 | J5: 749661
A6: Katie Downton | B6: 555 | C6: 2008-01-31 | D6: 700 | E6: Past Due | F6: Non Accrual | G6: 0 | H6: 0 | I6: 500000 | J6: 2500468
A7: Joseph Sumner | B7: 666 | C7: 2011-06-25 | D7: 600 | E7: Current | F7: On Accrual | G7: 0 | H7: 0 | I7: 0 | J7: 35000
A8: Stocky Honescotter | B8: 777 | C8: 2012-02-15 | D8: 700 | E8: Past Due | F8: Non Accrual | G8: 0 | H8: 0 | I8: 76500 | J8: 354654
C9: 1 | D9: 2 | E9: 3 | F9: 4 | G9: 0.05 | H9: 6 | I9: 7 | J9: 8
